[Event "Titled Tuesday Blitz December 06 Late 2022"]
[White "Dias, Joao Batista"]
[Black "Hernandez Jimenez, Alexander Andres"]
[WhiteFideId "2108240"]
[BlackFideId "3900452"]
[WhiteElo "1898"]
[BlackElo "2098"]
[Result "0-1"]
[Round "11"]
[TimeControl "180+1"]
[Date "2022.12.07"]
[WhiteClock "0:01:02"]
[BlackClock "0:00:25"]

1. e4 {[%clk 0:02:59]}  e5 {[%clk 0:02:57]} 2. Nf3 {[%clk 0:02:56]}  Nc6 {[%clk 0:02:57]} 3. d4 {[%clk 0:02:56]}  exd4 {[%clk 0:02:57]} 4. Nxd4 {[%clk 0:02:57]}  Bc5 {[%clk 0:02:57]} 5. Nxc6 {[%clk 0:02:57]}  Qf6 {[%clk 0:02:56]} 6. Qd2 {[%clk 0:02:56]}  bxc6 {[%clk 0:02:54]} 7. Bd3 {[%clk 0:02:56]}  Ne7 {[%clk 0:02:53]} 8. O-O {[%clk 0:02:56]}  Ng6 {[%clk 0:02:52]} 9. Qg5 {[%clk 0:02:55]}  Qxg5 {[%clk 0:02:49]} 10. Bxg5 {[%clk 0:02:54]}  Ne5 {[%clk 0:02:49]} 11. Nc3 {[%clk 0:02:53]}  Nxd3 {[%clk 0:02:48]} 12. cxd3 {[%clk 0:02:52]}  d6 {[%clk 0:02:47]} 13. a3 {[%clk 0:02:51]}  Ba6 {[%clk 0:02:43]} 14. Rfd1 {[%clk 0:02:47]}  Bd4 {[%clk 0:02:41]} 15. Rac1 {[%clk 0:02:45]}  Rb8 {[%clk 0:02:38]} 16. b4 {[%clk 0:02:45]}  Kd7 {[%clk 0:02:35]} 17. Be3 {[%clk 0:02:44]}  Bxe3 {[%clk 0:02:30]} 18. fxe3 {[%clk 0:02:44]}  Rhe8 {[%clk 0:02:22]} 19. Kf2 {[%clk 0:02:44]}  Re5 {[%clk 0:02:18]} 20. d4 {[%clk 0:02:42]}  Rh5 {[%clk 0:02:14]} 21. h3 {[%clk 0:02:41]}  f5 {[%clk 0:02:12]} 22. Kf3 {[%clk 0:02:32]}  fxe4+ {[%clk 0:02:11]} 23. Nxe4 {[%clk 0:02:29]}  Rf8+ {[%clk 0:02:07]} 24. Kg3 {[%clk 0:02:27]}  Re8 {[%clk 0:01:56]} 25. Kf3 {[%clk 0:02:23]}  Rf5+ {[%clk 0:01:52]} 26. Kg4 {[%clk 0:02:16]}  g6 {[%clk 0:01:43]} 27. Ng5 {[%clk 0:02:11]}  Be2+ {[%clk 0:01:42]} 28. Kh4 {[%clk 0:02:09]}  Bxd1 {[%clk 0:01:42]} 29. Rxd1 {[%clk 0:02:08]}  Rxe3 {[%clk 0:01:41]} 30. g4 {[%clk 0:02:08]}  Rd5 {[%clk 0:01:27]} 31. Nxh7 {[%clk 0:02:01]}  Ke7 {[%clk 0:01:19]} 32. Rf1 {[%clk 0:01:57]}  Rxd4 {[%clk 0:01:14]} 33. Ng5 {[%clk 0:01:56]}  Rxa3 {[%clk 0:01:08]} 34. Rf7+ {[%clk 0:01:56]}  Ke8 {[%clk 0:01:07]} 35. Rxc7 {[%clk 0:01:55]}  Rxb4 {[%clk 0:01:03]} 36. Nf7 {[%clk 0:01:49]}  d5 {[%clk 0:00:52]} 37. Kg5 {[%clk 0:01:46]}  Re3 {[%clk 0:00:50]} 38. Rxa7 {[%clk 0:01:40]}  d4 {[%clk 0:00:47]} 39. Kf6 {[%clk 0:01:32]}  d3 {[%clk 0:00:30]} 40. Nd6+ {[%clk 0:01:23]}  Kd8 {[%clk 0:00:29]} 41. Nf7+ {[%clk 0:01:15]}  Kc8 {[%clk 0:00:27]} 42. Kxg6 {[%clk 0:01:06]}  d2 {[%clk 0:00:26]} 43. Ra1 {[%clk 0:01:02]}  Re1 {[%clk 0:00:25]} 0-1


[Site "https://www.chess.com"]

[Event "Titled Tuesday Blitz December 06 Late 2022"]
[White "Domingo Nunez, Ruben"]
[Black "Kavutskiy, Konstantin"]
[WhiteFideId "22245570"]
[BlackFideId "2026384"]
[WhiteElo "2406"]
[BlackElo "2386"]
[Result "1-0"]
[Round "11"]
[TimeControl "180+1"]
[Date "2022.12.06"]
[WhiteClock "0:00:09"]
[BlackClock "0:00:14"]

1. b3 {[%clk 0:03:00]}  Nf6 {[%clk 0:02:56]} 2. Bb2 {[%clk 0:03:01]}  g6 {[%clk 0:02:57]} 3. g3 {[%clk 0:03:01]}  Bg7 {[%clk 0:02:57]} 4. Bg2 {[%clk 0:03:02]}  O-O {[%clk 0:02:57]} 5. Nf3 {[%clk 0:03:03]}  d6 {[%clk 0:02:57]} 6. O-O {[%clk 0:03:04]}  e5 {[%clk 0:02:57]} 7. c4 {[%clk 0:03:04]}  c5 {[%clk 0:02:49]} 8. e3 {[%clk 0:03:03]}  Nc6 {[%clk 0:02:40]} 9. d4 {[%clk 0:03:04]}  e4 {[%clk 0:02:26]} 10. Ng5 {[%clk 0:02:58]}  Re8 {[%clk 0:02:21]} 11. d5 {[%clk 0:02:56]}  Nb4 {[%clk 0:02:19]} 12. Nd2 {[%clk 0:02:51]}  Nfxd5 {[%clk 0:02:06]} 13. Bxg7 {[%clk 0:02:49]}  Kxg7 {[%clk 0:02:04]} 14. Ndxe4 {[%clk 0:02:30]}  Nc3 {[%clk 0:01:38]} 15. Nxc3 {[%clk 0:02:20]}  Qxg5 {[%clk 0:01:37]} 16. Qxd6 {[%clk 0:02:21]}  Bg4 {[%clk 0:01:30]} 17. Ne4 {[%clk 0:01:56]}  Rad8 {[%clk 0:01:01]} 18. Qxc5 {[%clk 0:01:39]}  Qxc5 {[%clk 0:01:00]} 19. Nxc5 {[%clk 0:01:40]}  b6 {[%clk 0:01:01]} 20. Nb7 {[%clk 0:01:31]}  Rd2 {[%clk 0:00:59]} 21. a3 {[%clk 0:01:30]}  Nd3 {[%clk 0:00:50]} 22. Nd6 {[%clk 0:01:29]}  Rd8 {[%clk 0:00:46]} 23. Ne4 {[%clk 0:01:29]}  Rb2 {[%clk 0:00:46]} 24. Rfb1 {[%clk 0:01:25]}  Rc2 {[%clk 0:00:46]} 25. h3 {[%clk 0:00:33]}  Bf5 {[%clk 0:00:45]} 26. g4 {[%clk 0:00:33]}  Bc8 {[%clk 0:00:31]} 27. Rd1 {[%clk 0:00:28]}  f5 {[%clk 0:00:30]} 28. gxf5 {[%clk 0:00:26]}  gxf5 {[%clk 0:00:31]} 29. Ng3 {[%clk 0:00:15]}  Rxf2 {[%clk 0:00:26]} 30. Bf1 {[%clk 0:00:15]}  Rf3 {[%clk 0:00:24]} 31. Nh5+ {[%clk 0:00:06]}  Kh6 {[%clk 0:00:22]} 32. Rxd3 {[%clk 0:00:06]}  Rxd3 {[%clk 0:00:15]} 33. Bxd3 {[%clk 0:00:07]}  Kxh5 {[%clk 0:00:15]} 34. Be2 {[%clk 0:00:08]}  Bb7 {[%clk 0:00:14]} 35. Rf1 {[%clk 0:00:09]} 1-0


[Site "https://www.chess.com"]

[Event "Titled Tuesday Blitz December 06 Late 2022"]
[White "Espinosa, Pedro"]
[Black "Bryant, Todd"]
[WhiteFideId "30921066"]
[BlackFideId "2031299"]
[WhiteElo "2016"]
[BlackElo "2330"]
[Result "1-0"]
[Round "11"]
[TimeControl "180+1"]
[Date "2022.12.07"]
[WhiteClock "0:01:08"]
[BlackClock "0:00:01"]

1. d4 {[%clk 0:03:00]}  Nf6 {[%clk 0:02:59]} 2. c4 {[%clk 0:03:00]}  g6 {[%clk 0:03:00]} 3. Nc3 {[%clk 0:03:00]}  Bg7 {[%clk 0:03:00]} 4. e4 {[%clk 0:03:00]}  d6 {[%clk 0:03:00]} 5. Nf3 {[%clk 0:03:00]}  O-O {[%clk 0:03:01]} 6. Be2 {[%clk 0:03:01]}  e5 {[%clk 0:03:02]} 7. dxe5 {[%clk 0:03:02]}  dxe5 {[%clk 0:03:01]} 8. Qxd8 {[%clk 0:03:02]}  Rxd8 {[%clk 0:03:02]} 9. Bg5 {[%clk 0:03:03]}  c6 {[%clk 0:03:02]} 10. Nxe5 {[%clk 0:03:02]}  Re8 {[%clk 0:03:03]} 11. O-O-O {[%clk 0:03:02]}  h6 {[%clk 0:02:59]} 12. Bf4 {[%clk 0:02:55]}  Nh5 {[%clk 0:02:58]} 13. Bxh5 {[%clk 0:02:54]}  gxh5 {[%clk 0:02:37]} 14. Nd3 {[%clk 0:02:48]}  Bxc3 {[%clk 0:02:33]} 15. bxc3 {[%clk 0:02:47]}  Rxe4 {[%clk 0:02:26]} 16. Rhe1 {[%clk 0:02:35]}  Rxe1 {[%clk 0:02:19]} 17. Rxe1 {[%clk 0:02:35]}  Be6 {[%clk 0:02:19]} 18. Nc5 {[%clk 0:02:34]}  Na6 {[%clk 0:01:33]} 19. Nxe6 {[%clk 0:02:31]}  Re8 {[%clk 0:00:59]} 20. Bxh6 {[%clk 0:02:30]}  Rxe6 {[%clk 0:00:58]} 21. Rxe6 {[%clk 0:02:29]}  fxe6 {[%clk 0:00:59]} 22. Be3 {[%clk 0:02:26]}  b6 {[%clk 0:00:56]} 23. Kc2 {[%clk 0:02:19]}  Kf7 {[%clk 0:00:55]} 24. Kd3 {[%clk 0:02:17]}  Kf6 {[%clk 0:00:53]} 25. Ke4 {[%clk 0:02:13]}  Nb8 {[%clk 0:00:43]} 26. Bd4+ {[%clk 0:02:05]}  Ke7 {[%clk 0:00:38]} 27. Kf4 {[%clk 0:02:05]}  Nd7 {[%clk 0:00:35]} 28. Kg5 {[%clk 0:02:02]}  e5 {[%clk 0:00:19]} 29. Be3 {[%clk 0:02:01]}  Ke6 {[%clk 0:00:16]} 30. Kxh5 {[%clk 0:01:59]}  Nf6+ {[%clk 0:00:16]} 31. Kh4 {[%clk 0:01:56]}  Ne4 {[%clk 0:00:17]} 32. g4 {[%clk 0:01:42]}  Nxc3 {[%clk 0:00:17]} 33. a3 {[%clk 0:01:38]}  Ne4 {[%clk 0:00:08]} 34. g5 {[%clk 0:01:35]}  c5 {[%clk 0:00:05]} 35. g6 {[%clk 0:01:27]}  Nd6 {[%clk 0:00:04]} 36. Kg5 {[%clk 0:01:19]}  a5 {[%clk 0:00:03]} 37. Kh6 {[%clk 0:01:17]}  Kf6 {[%clk 0:00:01]} 38. Kh7 {[%clk 0:01:13]}  Nf5 {[%clk 0:00:01]} 39. Bh6 {[%clk 0:01:09]}  a4 {[%clk 0:00:01]} 40. g7 {[%clk 0:01:08]} 1-0


[Site "https://www.chess.com"]

[Event "Titled Tuesday Blitz December 06 Late 2022"]
[White "Estrada Nieto, Julian"]
[Black "Seletsky, Grigory"]
[WhiteFideId "5101018"]
[BlackFideId "14112191"]
[WhiteElo "2195"]
[BlackElo "2492"]
[Result "0-1"]
[Round "11"]
[TimeControl "180+1"]
[Date "2022.12.07"]
[WhiteClock "0:00:05"]
[BlackClock "0:00:14"]

1. e4 {[%clk 0:03:00]}  e6 {[%clk 0:02:59]} 2. d4 {[%clk 0:03:00]}  d5 {[%clk 0:02:59]} 3. Nd2 {[%clk 0:03:00]}  Nc6 {[%clk 0:02:59]} 4. Ngf3 {[%clk 0:03:00]}  Nf6 {[%clk 0:02:59]} 5. e5 {[%clk 0:03:00]}  Nd7 {[%clk 0:03:00]} 6. Be2 {[%clk 0:03:01]}  b6 {[%clk 0:02:56]} 7. O-O {[%clk 0:02:59]}  a5 {[%clk 0:02:56]} 8. c3 {[%clk 0:02:56]}  Ba6 {[%clk 0:02:57]} 9. Bxa6 {[%clk 0:02:56]}  Rxa6 {[%clk 0:02:57]} 10. Re1 {[%clk 0:02:52]}  Be7 {[%clk 0:02:55]} 11. Nf1 {[%clk 0:02:52]}  Ra8 {[%clk 0:02:55]} 12. Ng3 {[%clk 0:02:50]}  g6 {[%clk 0:02:41]} 13. Bh6 {[%clk 0:02:48]}  Bf8 {[%clk 0:02:41]} 14. Qd2 {[%clk 0:02:46]}  Bxh6 {[%clk 0:02:41]} 15. Qxh6 {[%clk 0:02:46]}  Qe7 {[%clk 0:02:41]} 16. a3 {[%clk 0:02:39]}  a4 {[%clk 0:02:39]} 17. Rac1 {[%clk 0:02:25]}  b5 {[%clk 0:02:29]} 18. Qg7 {[%clk 0:02:00]}  Qf8 {[%clk 0:02:28]} 19. Qxf8+ {[%clk 0:01:56]}  Kxf8 {[%clk 0:02:25]} 20. h4 {[%clk 0:01:57]}  h5 {[%clk 0:02:12]} 21. Ne2 {[%clk 0:01:54]}  Na5 {[%clk 0:02:11]} 22. Nd2 {[%clk 0:01:54]}  Nc4 {[%clk 0:02:10]} 23. Rc2 {[%clk 0:01:47]}  Nxd2 {[%clk 0:02:05]} 24. Rxd2 {[%clk 0:01:47]}  Nb6 {[%clk 0:02:04]} 25. Nf4 {[%clk 0:01:45]}  Nc4 {[%clk 0:02:04]} 26. Rde2 {[%clk 0:01:45]}  Ke7 {[%clk 0:02:03]} 27. Nd3 {[%clk 0:01:45]}  Rag8 {[%clk 0:01:53]} 28. g3 {[%clk 0:01:37]}  Rg7 {[%clk 0:01:25]} 29. Kg2 {[%clk 0:01:34]}  Rc8 {[%clk 0:01:24]} 30. Kf3 {[%clk 0:01:26]}  Rh8 {[%clk 0:01:20]} 31. Rh1 {[%clk 0:01:25]}  Kd7 {[%clk 0:01:06]} 32. Nf4 {[%clk 0:01:21]}  Na5 {[%clk 0:01:02]} 33. Rc2 {[%clk 0:01:18]}  Nc6 {[%clk 0:01:02]} 34. Nd3 {[%clk 0:01:15]}  Ne7 {[%clk 0:01:01]} 35. Ke2 {[%clk 0:01:10]}  Nf5 {[%clk 0:01:01]} 36. Rb1 {[%clk 0:01:09]}  Ra8 {[%clk 0:00:58]} 37. Nc5+ {[%clk 0:01:08]}  Kc6 {[%clk 0:00:56]} 38. Nd3 {[%clk 0:01:08]}  Rgg8 {[%clk 0:00:54]} 39. Kf3 {[%clk 0:01:06]}  Ra7 {[%clk 0:00:51]} 40. Kf4 {[%clk 0:01:06]}  Kd7 {[%clk 0:00:49]} 41. f3 {[%clk 0:01:04]}  Ke7 {[%clk 0:00:48]} 42. Rh2 {[%clk 0:01:03]}  Rh8 {[%clk 0:00:46]} 43. Rbh1 {[%clk 0:01:00]}  Raa8 {[%clk 0:00:45]} 44. g4 {[%clk 0:01:00]}  Ng7 {[%clk 0:00:43]} 45. Ke3 {[%clk 0:00:57]}  c6 {[%clk 0:00:41]} 46. Nf4 {[%clk 0:00:53]}  Kd7 {[%clk 0:00:40]} 47. Nd3 {[%clk 0:00:49]}  Ke7 {[%clk 0:00:40]} 48. Kd2 {[%clk 0:00:49]}  Rh7 {[%clk 0:00:38]} 49. Nf4 {[%clk 0:00:43]}  Kd7 {[%clk 0:00:38]} 50. Rb1 {[%clk 0:00:36]}  hxg4 {[%clk 0:00:34]} 51. fxg4 {[%clk 0:00:36]}  Rah8 {[%clk 0:00:34]} 52. Rbh1 {[%clk 0:00:36]}  g5 {[%clk 0:00:34]} 53. Ng2 {[%clk 0:00:36]}  gxh4 {[%clk 0:00:33]} 54. Rxh4 {[%clk 0:00:36]}  Rxh4 {[%clk 0:00:33]} 55. Rxh4 {[%clk 0:00:36]}  Rxh4 {[%clk 0:00:33]} 56. Nxh4 {[%clk 0:00:37]}  Ke7 {[%clk 0:00:32]} 57. Ke3 {[%clk 0:00:37]}  Ne8 {[%clk 0:00:31]} 58. Kf4 {[%clk 0:00:32]}  Nc7 {[%clk 0:00:31]} 59. Nf3 {[%clk 0:00:29]}  Na8 {[%clk 0:00:31]} 60. Ne1 {[%clk 0:00:27]}  Nb6 {[%clk 0:00:32]} 61. Nd3 {[%clk 0:00:27]}  Nc4 {[%clk 0:00:32]} 62. Kg5 {[%clk 0:00:27]}  Ne3 {[%clk 0:00:32]} 63. Kh5 {[%clk 0:00:25]}  Kf8 {[%clk 0:00:27]} 64. Nb4 {[%clk 0:00:20]}  Nc4 {[%clk 0:00:27]} 65. Nd3 {[%clk 0:00:20]}  Kg7 {[%clk 0:00:26]} 66. Kg5 {[%clk 0:00:19]}  Ne3 {[%clk 0:00:24]} 67. Kf4 {[%clk 0:00:19]}  Nc4 {[%clk 0:00:24]} 68. g5 {[%clk 0:00:18]}  Kg6 {[%clk 0:00:24]} 69. Nb4 {[%clk 0:00:17]}  Nxb2 {[%clk 0:00:23]} 70. Nxc6 {[%clk 0:00:17]}  Nd1 {[%clk 0:00:23]} 71. Ne7+ {[%clk 0:00:15]}  Kg7 {[%clk 0:00:19]} 72. Nc8 {[%clk 0:00:13]}  Nxc3 {[%clk 0:00:18]} 73. Nd6 {[%clk 0:00:14]}  b4 {[%clk 0:00:17]} 74. axb4 {[%clk 0:00:10]}  a3 {[%clk 0:00:18]} 75. Ne8+ {[%clk 0:00:10]}  Kf8 {[%clk 0:00:17]} 76. Nd6 {[%clk 0:00:08]}  a2 {[%clk 0:00:16]} 77. b5 {[%clk 0:00:08]}  Nxb5 {[%clk 0:00:16]} 78. Nxb5 {[%clk 0:00:08]}  a1=Q {[%clk 0:00:16]} 79. Nd6 {[%clk 0:00:05]}  Qxd4+ {[%clk 0:00:14]} 0-1


[Site "https://www.chess.com"]

[Event "Titled Tuesday Blitz December 06 Late 2022"]
[White "Ezat, Mohamed"]
[Black "Zhu, Jiner"]
[WhiteFideId "10600906"]
[BlackFideId "8608059"]
[WhiteElo "2388"]
[BlackElo "2384"]
[Result "0-1"]
[Round "11"]
[TimeControl "180+1"]
[Date "2022.12.07"]
[WhiteClock "0:00:11"]
[BlackClock "0:00:44"]

1. e4 {[%clk 0:02:53]}  e5 {[%clk 0:02:58]} 2. Nf3 {[%clk 0:02:53]}  Nc6 {[%clk 0:02:59]} 3. Bb5 {[%clk 0:02:53]}  a6 {[%clk 0:02:58]} 4. Ba4 {[%clk 0:02:54]}  d6 {[%clk 0:02:58]} 5. O-O {[%clk 0:02:54]}  Bd7 {[%clk 0:02:58]} 6. d4 {[%clk 0:02:53]}  exd4 {[%clk 0:02:56]} 7. c3 {[%clk 0:02:52]}  d3 {[%clk 0:02:49]} 8. Qxd3 {[%clk 0:02:49]}  Nf6 {[%clk 0:02:48]} 9. Bg5 {[%clk 0:02:46]}  Be7 {[%clk 0:02:47]} 10. Nbd2 {[%clk 0:02:46]}  O-O {[%clk 0:02:46]} 11. Bc2 {[%clk 0:02:41]}  Ne5 {[%clk 0:02:42]} 12. Nxe5 {[%clk 0:02:36]}  dxe5 {[%clk 0:02:43]} 13. Nf3 {[%clk 0:02:35]}  h6 {[%clk 0:02:34]} 14. Bh4 {[%clk 0:02:30]}  Bb5 {[%clk 0:02:31]} 15. c4 {[%clk 0:02:26]}  Qxd3 {[%clk 0:02:22]} 16. Bxd3 {[%clk 0:02:25]}  Rfd8 {[%clk 0:02:07]} 17. Nxe5 {[%clk 0:02:21]}  Be8 {[%clk 0:02:07]} 18. Rfd1 {[%clk 0:02:14]}  Rd4 {[%clk 0:01:59]} 19. Nf3 {[%clk 0:02:12]}  Rd7 {[%clk 0:01:53]} 20. e5 {[%clk 0:02:11]}  Nh5 {[%clk 0:01:48]} 21. Bxe7 {[%clk 0:01:23]}  Rxe7 {[%clk 0:01:49]} 22. Be4 {[%clk 0:01:18]}  c6 {[%clk 0:01:37]} 23. Re1 {[%clk 0:01:09]}  Nf4 {[%clk 0:01:34]} 24. Bc2 {[%clk 0:01:07]}  a5 {[%clk 0:01:30]} 25. a3 {[%clk 0:01:06]}  Bd7 {[%clk 0:01:24]} 26. Nd4 {[%clk 0:01:03]}  Rae8 {[%clk 0:01:21]} 27. g3 {[%clk 0:00:48]}  Nh3+ {[%clk 0:01:14]} 28. Kg2 {[%clk 0:00:48]}  Rxe5 {[%clk 0:01:14]} 29. Rxe5 {[%clk 0:00:45]}  Rxe5 {[%clk 0:01:15]} 30. Rd1 {[%clk 0:00:44]}  Re7 {[%clk 0:01:05]} 31. Nb3 {[%clk 0:00:34]}  Ng5 {[%clk 0:01:02]} 32. Nxa5 {[%clk 0:00:31]}  Bh3+ {[%clk 0:01:01]} 33. Kg1 {[%clk 0:00:30]}  Nf3+ {[%clk 0:01:01]} 34. Kh1 {[%clk 0:00:30]}  g6 {[%clk 0:00:55]} 35. Bd3 {[%clk 0:00:27]}  Ne1 {[%clk 0:00:48]} 36. Bb1 {[%clk 0:00:21]}  Re2 {[%clk 0:00:45]} 37. b4 {[%clk 0:00:11]}  Nf3 {[%clk 0:00:44]} 0-1


[Site "https://www.chess.com"]

[Event "Titled Tuesday Blitz December 06 Late 2022"]
[White "Gerbelli Neto, Eduardo"]
[Black "Joubert, Dantelle"]
[WhiteFideId "2103281"]
[BlackFideId "14310813"]
[WhiteElo "2178"]
[BlackElo "1507"]
[Result "0-1"]
[Round "11"]
[TimeControl "180+1"]
[Date "2022.12.07"]
[WhiteClock "0:00:41"]
[BlackClock "0:00:54"]

1. e4 {[%clk 0:03:00]}  e5 {[%clk 0:02:58]} 2. Nc3 {[%clk 0:02:59]}  Nf6 {[%clk 0:02:56]} 3. f4 {[%clk 0:02:58]}  d5 {[%clk 0:02:56]} 4. fxe5 {[%clk 0:02:59]}  Nxe4 {[%clk 0:02:55]} 5. d3 {[%clk 0:02:58]}  Nxc3 {[%clk 0:02:54]} 6. bxc3 {[%clk 0:02:59]}  Be7 {[%clk 0:02:52]} 7. Nf3 {[%clk 0:03:00]}  O-O {[%clk 0:02:52]} 8. d4 {[%clk 0:02:55]}  f6 {[%clk 0:02:51]} 9. Bd3 {[%clk 0:02:30]}  fxe5 {[%clk 0:02:49]} 10. dxe5 {[%clk 0:02:29]}  Bg4 {[%clk 0:02:16]} 11. O-O {[%clk 0:02:22]}  Nc6 {[%clk 0:02:13]} 12. Qe1 {[%clk 0:02:17]}  Bxf3 {[%clk 0:02:06]} 13. gxf3 {[%clk 0:02:17]}  Bg5 {[%clk 0:02:03]} 14. f4 {[%clk 0:02:14]}  Bh4 {[%clk 0:02:01]} 15. Qe2 {[%clk 0:02:13]}  d4 {[%clk 0:01:49]} 16. Qe4 {[%clk 0:02:02]}  g6 {[%clk 0:01:46]} 17. Bb2 {[%clk 0:01:54]}  dxc3 {[%clk 0:01:42]} 18. Bxc3 {[%clk 0:01:55]}  Qe7 {[%clk 0:01:41]} 19. Rab1 {[%clk 0:01:44]}  Qc5+ {[%clk 0:01:39]} 20. Kh1 {[%clk 0:01:34]}  Qxc3 {[%clk 0:01:38]} 21. Bc4+ {[%clk 0:01:22]}  Kh8 {[%clk 0:01:29]} 22. Rxb7 {[%clk 0:01:20]}  Na5 {[%clk 0:01:21]} 23. Rxc7 {[%clk 0:01:17]}  Nxc4 {[%clk 0:01:12]} 24. Rxc4 {[%clk 0:01:15]}  Qb2 {[%clk 0:01:09]} 25. e6 {[%clk 0:01:01]}  Rae8 {[%clk 0:00:59]} 26. Rc7 {[%clk 0:00:51]}  Qf6 {[%clk 0:00:56]} 27. e7 {[%clk 0:00:50]}  Rxe7 {[%clk 0:00:55]} 28. Rxe7 {[%clk 0:00:45]}  Qxe7 {[%clk 0:00:55]} 29. Qxe7 {[%clk 0:00:41]}  Bxe7 {[%clk 0:00:54]} 0-1


[Site "https://www.chess.com"]

[Event "Titled Tuesday Blitz December 06 Late 2022"]
[White "Goncalves, Davi Sulzbacher"]
[Black "Gatterer, Florian"]
[WhiteFideId "2154510"]
[BlackFideId "811688"]
[WhiteElo "2182"]
[BlackElo "2218"]
[Result "1/2-1/2"]
[Round "11"]
[TimeControl "180+1"]
[Date "2022.12.07"]
[WhiteClock "0:01:45"]
[BlackClock "0:02:44"]

1. Nf3 {[%clk 0:01:43]}  d5 {[%clk 0:02:59]} 2. g3 {[%clk 0:01:44]}  Nf6 {[%clk 0:02:55]} 3. Bg2 {[%clk 0:01:45]}  g6 {[%clk 0:02:56]} 4. O-O {[%clk 0:01:45]}  Bg7 {[%clk 0:02:56]} 5. d4 {[%clk 0:01:46]}  O-O {[%clk 0:02:56]} 6. c4 {[%clk 0:01:46]}  c6 {[%clk 0:02:57]} 7. cxd5 {[%clk 0:01:46]}  cxd5 {[%clk 0:02:57]} 8. Nc3 {[%clk 0:01:46]}  Ne4 {[%clk 0:02:56]} 9. Nxe4 {[%clk 0:01:45]}  dxe4 {[%clk 0:02:55]} 10. Ng5 {[%clk 0:01:46]}  Qxd4 {[%clk 0:02:49]} 11. Nxe4 {[%clk 0:01:45]}  Nc6 {[%clk 0:02:44]} 1/2-1/2


[Site "https://www.chess.com"]

[Event "Titled Tuesday Blitz December 06 Late 2022"]
[White "Graif, William"]
[Black "Battlecruiser_Operational"]
[WhiteFideId "2609835"]
[WhiteElo "2205"]
[BlackElo "2293"]
[Result "0-1"]
[Round "11"]
[TimeControl "180+1"]
[Date "2022.12.07"]
[WhiteClock "0:00:02"]
[BlackClock "0:00:16"]

1. e4 {[%clk 0:02:55]}  c6 {[%clk 0:03:00]} 2. d4 {[%clk 0:02:53]}  d5 {[%clk 0:03:00]} 3. Nc3 {[%clk 0:02:53]}  dxe4 {[%clk 0:02:59]} 4. Bc4 {[%clk 0:02:53]}  Nf6 {[%clk 0:02:55]} 5. f3 {[%clk 0:02:49]}  e3 {[%clk 0:02:55]} 6. Bxe3 {[%clk 0:02:46]}  Nbd7 {[%clk 0:02:51]} 7. Nge2 {[%clk 0:02:25]}  b5 {[%clk 0:02:48]} 8. Bd3 {[%clk 0:02:18]}  e6 {[%clk 0:02:42]} 9. O-O {[%clk 0:02:08]}  Bb7 {[%clk 0:02:41]} 10. Ne4 {[%clk 0:01:54]}  Be7 {[%clk 0:02:36]} 11. c3 {[%clk 0:01:46]}  a6 {[%clk 0:02:29]} 12. b4 {[%clk 0:01:37]}  O-O {[%clk 0:02:25]} 13. N2g3 {[%clk 0:01:22]}  Nd5 {[%clk 0:02:22]} 14. Bd2 {[%clk 0:01:22]}  f5 {[%clk 0:02:17]} 15. Nf2 {[%clk 0:01:15]}  Bd6 {[%clk 0:02:13]} 16. Nh3 {[%clk 0:01:04]}  h6 {[%clk 0:02:07]} 17. f4 {[%clk 0:00:58]}  N7f6 {[%clk 0:01:55]} 18. Re1 {[%clk 0:00:54]}  Re8 {[%clk 0:01:50]} 19. Qf3 {[%clk 0:00:49]}  a5 {[%clk 0:01:44]} 20. a3 {[%clk 0:00:49]}  Qc7 {[%clk 0:01:38]} 21. Rf1 {[%clk 0:00:21]}  Ng4 {[%clk 0:01:28]} 22. Nf2 {[%clk 0:00:20]}  Ndf6 {[%clk 0:01:06]} 23. Nxg4 {[%clk 0:00:19]}  Nxg4 {[%clk 0:01:01]} 24. Nh5 {[%clk 0:00:19]}  g6 {[%clk 0:00:46]} 25. Ng3 {[%clk 0:00:19]}  c5 {[%clk 0:00:45]} 26. Qe2 {[%clk 0:00:16]}  axb4 {[%clk 0:00:40]} 27. axb4 {[%clk 0:00:15]}  c4 {[%clk 0:00:31]} 28. Rxa8 {[%clk 0:00:14]}  Bxa8 {[%clk 0:00:30]} 29. Bxf5 {[%clk 0:00:12]}  gxf5 {[%clk 0:00:27]} 30. Nxf5 {[%clk 0:00:12]}  Nf6 {[%clk 0:00:27]} 31. Nxh6+ {[%clk 0:00:12]}  Kg7 {[%clk 0:00:26]} 32. Nf5+ {[%clk 0:00:10]}  exf5 {[%clk 0:00:24]} 33. Qf2 {[%clk 0:00:10]}  Qc6 {[%clk 0:00:19]} 34. Qg3+ {[%clk 0:00:08]}  Kf7 {[%clk 0:00:20]} 35. Ra1 {[%clk 0:00:08]}  Rg8 {[%clk 0:00:18]} 36. Ra7+ {[%clk 0:00:07]}  Be7 {[%clk 0:00:18]} 37. Rxe7+ {[%clk 0:00:01]}  Kxe7 {[%clk 0:00:17]} 38. Qe3+ {[%clk 0:00:02]}  Kf7 {[%clk 0:00:16]} 39. g3 {[%clk 0:00:02]}  Qg2# {[%clk 0:00:16]} 0-1


[Site "https://www.chess.com"]